[Event "January 2 Early 2024"]
[Site "https://www.chess.com"]
[Date "2024.01.02"]
[Round "6"]
[White "Zou, Chen"]
[Black "Aravindh, Chithambaram VR."]
[Result "1-0"]
[Board "26"]
[TimeControl "180+1"]
[WhiteFideId "8610959"]
[BlackFideId "5072786"]
[WhiteElo "2758"]
[BlackElo "2927"]
[WhiteTeam "CHN"]
[BlackTeam "IND"]
[WhiteClock "0:00:15"]
[BlackClock "0:00:00"]

1. e4 {[%clk 0:02:59]}  Nf6 {[%clk 0:02:59]} 2. e5 {[%clk 0:02:59]}  Nd5 {[%clk 0:02:59]} 3. d4 {[%clk 0:02:59]}  d6 {[%clk 0:03:00]} 4. Nf3 {[%clk 0:02:59]}  dxe5 {[%clk 0:03:00]} 5. Nxe5 {[%clk 0:03:00]}  c6 {[%clk 0:03:01]} 6. Be2 {[%clk 0:02:58]}  Bf5 {[%clk 0:02:59]} 7. O-O {[%clk 0:02:58]}  Nd7 {[%clk 0:02:59]} 8. Nf3 {[%clk 0:02:58]}  e6 {[%clk 0:02:59]} 9. c4 {[%clk 0:02:58]}  N5f6 {[%clk 0:02:59]} 10. Nc3 {[%clk 0:02:58]}  Bd6 {[%clk 0:02:59]} 11. Nh4 {[%clk 0:02:56]}  Bg6 {[%clk 0:02:58]} 12. g3 {[%clk 0:02:56]}  O-O {[%clk 0:02:58]} 13. Nxg6 {[%clk 0:02:53]}  hxg6 {[%clk 0:02:59]} 14. Be3 {[%clk 0:02:52]}  Re8 {[%clk 0:02:53]} 15. Bf3 {[%clk 0:02:15]}  Qc7 {[%clk 0:02:36]} 16. Bg2 {[%clk 0:02:07]}  e5 {[%clk 0:02:35]} 17. d5 {[%clk 0:02:06]}  e4 {[%clk 0:02:35]} 18. dxc6 {[%clk 0:02:05]}  bxc6 {[%clk 0:02:36]} 19. Qc2 {[%clk 0:02:03]}  Bc5 {[%clk 0:02:33]} 20. Rfe1 {[%clk 0:01:58]}  Bb4 {[%clk 0:01:44]} 21. Bf4 {[%clk 0:01:44]}  Qa5 {[%clk 0:01:42]} 22. Bd2 {[%clk 0:01:28]}  Bxc3 {[%clk 0:00:36]} 23. Bxc3 {[%clk 0:01:28]}  Qf5 {[%clk 0:00:37]} 24. Re2 {[%clk 0:01:16]}  Re6 {[%clk 0:00:36]} 25. Rae1 {[%clk 0:01:15]}  Rae8 {[%clk 0:00:36]} 26. Kh1 {[%clk 0:01:06]}  g5 {[%clk 0:00:31]} 27. f3 {[%clk 0:00:56]}  Nc5 {[%clk 0:00:29]} 28. fxe4 {[%clk 0:00:23]}  Nfxe4 {[%clk 0:00:28]} 29. Kg1 {[%clk 0:00:23]}  Nxg3 {[%clk 0:00:07]} 30. Qxf5 {[%clk 0:00:18]}  Nxf5 {[%clk 0:00:08]} 31. Rxe6 {[%clk 0:00:17]}  Nxe6 {[%clk 0:00:09]} 32. Bxc6 {[%clk 0:00:16]}  Rc8 {[%clk 0:00:10]} 33. Bd7 {[%clk 0:00:10]}  Rxc4 {[%clk 0:00:08]} 34. Rxe6 {[%clk 0:00:11]}  Rg4+ {[%clk 0:00:08]} 35. Kh1 {[%clk 0:00:11]}  fxe6 {[%clk 0:00:05]} 36. Bxe6+ {[%clk 0:00:12]}  Kf8 {[%clk 0:00:05]} 37. Bxf5 {[%clk 0:00:13]}  Rf4 {[%clk 0:00:06]} 38. Bd3 {[%clk 0:00:12]}  Rf3 {[%clk 0:00:05]} 39. Bc4 {[%clk 0:00:11]}  Rf4 {[%clk 0:00:05]} 40. Bb3 {[%clk 0:00:10]}  Ke7 {[%clk 0:00:04]} 41. Kg1 {[%clk 0:00:10]}  Kd6 {[%clk 0:00:03]} 42. Bxg7 {[%clk 0:00:10]}  Rg4+ {[%clk 0:00:04]} 43. Kf2 {[%clk 0:00:09]}  Rh4 {[%clk 0:00:04]} 44. Kg3 {[%clk 0:00:10]}  Re4 {[%clk 0:00:04]} 45. Bc3 {[%clk 0:00:10]}  Kc5 {[%clk 0:00:04]} 46. a3 {[%clk 0:00:11]}  Kb5 {[%clk 0:00:04]} 47. Bd1 {[%clk 0:00:12]}  a5 {[%clk 0:00:03]} 48. Bg4 {[%clk 0:00:12]}  Re3+ {[%clk 0:00:04]} 49. Kg2 {[%clk 0:00:12]}  a4 {[%clk 0:00:04]} 50. h3 {[%clk 0:00:13]}  Kc4 {[%clk 0:00:04]} 51. Kf2 {[%clk 0:00:13]}  Re8 {[%clk 0:00:04]} 52. Kf3 {[%clk 0:00:13]}  Kb3 {[%clk 0:00:04]} 53. Bf5 {[%clk 0:00:13]}  Rf8 {[%clk 0:00:04]} 54. Kg4 {[%clk 0:00:14]}  Rd8 {[%clk 0:00:04]} 55. Kxg5 {[%clk 0:00:14]}  Rc8 {[%clk 0:00:04]} 56. h4 {[%clk 0:00:15]}  Rg8+ {[%clk 0:00:04]} 57. Bg6 {[%clk 0:00:14]}  Ka2 {[%clk 0:00:03]} 58. h5 {[%clk 0:00:15]}  Rb8 {[%clk 0:00:00]} 59. h6 {[%clk 0:00:15]} 1-0

[Event "January 2 Early 2024"]
[Site "https://www.chess.com"]
[Date "2024.01.02"]
[Round "6"]
[White "Vaibhav Jayant Raut"]
[Black "Klimkowski, Jan"]
[Result "0-1"]
[Board "27"]
[TimeControl "180+1"]
[WhiteFideId "5089034"]
[BlackFideId "21856222"]
[WhiteElo "2749"]
[BlackElo "2919"]
[WhiteTeam "IND"]
[BlackTeam "POL"]
[WhiteClock "0:01:36"]
[BlackClock "0:02:13"]

1. e4 {[%clk 0:03:00]}  c5 {[%clk 0:02:59]} 2. Nf3 {[%clk 0:03:00]}  d6 {[%clk 0:02:59]} 3. b3 {[%clk 0:03:00]}  Nf6 {[%clk 0:02:59]} 4. Nc3 {[%clk 0:02:54]}  g6 {[%clk 0:02:59]} 5. Bb2 {[%clk 0:02:53]}  Bg7 {[%clk 0:03:00]} 6. g3 {[%clk 0:02:49]}  Nxe4 {[%clk 0:02:58]} 7. Bg2 {[%clk 0:02:41]}  Nxc3 {[%clk 0:02:59]} 8. Bxc3 {[%clk 0:02:40]}  e5 {[%clk 0:02:59]} 9. Qe2 {[%clk 0:02:36]}  Nc6 {[%clk 0:02:58]} 10. d3 {[%clk 0:02:35]}  O-O {[%clk 0:02:58]} 11. O-O-O {[%clk 0:02:35]}  a5 {[%clk 0:02:56]} 12. h4 {[%clk 0:02:32]}  e4 {[%clk 0:02:52]} 13. Bxg7 {[%clk 0:02:00]}  exf3 {[%clk 0:02:51]} 14. Qxf3 {[%clk 0:02:01]}  Kxg7 {[%clk 0:02:52]} 15. h5 {[%clk 0:02:02]}  Qg5+ {[%clk 0:02:47]} 16. Kb1 {[%clk 0:02:01]}  Bf5 {[%clk 0:02:48]} 17. h6+ {[%clk 0:02:00]}  Kg8 {[%clk 0:02:44]} 18. Qd5 {[%clk 0:02:01]}  Qf6 {[%clk 0:02:38]} 19. Rh4 {[%clk 0:01:51]}  Qe5 {[%clk 0:02:29]} 20. Qc4 {[%clk 0:01:46]}  a4 {[%clk 0:02:25]} 21. g4 {[%clk 0:01:45]}  axb3 {[%clk 0:02:20]} 22. cxb3 {[%clk 0:01:43]}  Be6 {[%clk 0:02:17]} 23. Qb5 {[%clk 0:01:36]}  Qe2 {[%clk 0:02:13]} 0-1

[Event "January 2 Early 2024"]
[Site "https://www.chess.com"]
[Date "2024.01.02"]
[Round "6"]
[White "Ibarra Jerez, Jose Carlos"]
[Black "Domingo Nunez, Alejandro"]
[Result "1-0"]
[Board "28"]
[TimeControl "180+1"]
[WhiteFideId "2226332"]
[BlackFideId "22245561"]
[WhiteElo "2918"]
[BlackElo "2672"]
[WhiteTeam "ESP"]
[BlackTeam "ESP"]
[WhiteClock "0:00:08"]
[BlackClock "0:00:03"]

1. e4 {[%clk 0:03:00]}  g6 {[%clk 0:03:00]} 2. d4 {[%clk 0:03:00]}  Bg7 {[%clk 0:02:57]} 3. Nc3 {[%clk 0:02:59]}  c6 {[%clk 0:02:58]} 4. Nf3 {[%clk 0:02:58]}  d5 {[%clk 0:02:59]} 5. Bf4 {[%clk 0:02:58]}  dxe4 {[%clk 0:02:57]} 6. Nxe4 {[%clk 0:02:59]}  Nf6 {[%clk 0:02:58]} 7. Nxf6+ {[%clk 0:02:56]}  exf6 {[%clk 0:02:59]} 8. Be2 {[%clk 0:02:56]}  O-O {[%clk 0:02:59]} 9. O-O {[%clk 0:02:56]}  Re8 {[%clk 0:02:58]} 10. c4 {[%clk 0:02:57]}  Bf5 {[%clk 0:02:53]} 11. Qd2 {[%clk 0:02:45]}  Nd7 {[%clk 0:02:53]} 12. Rfd1 {[%clk 0:02:45]}  Be4 {[%clk 0:02:48]} 13. d5 {[%clk 0:02:37]}  Nb6 {[%clk 0:02:27]} 14. d6 {[%clk 0:02:25]}  c5 {[%clk 0:02:11]} 15. b4 {[%clk 0:02:01]}  f5 {[%clk 0:02:02]} 16. bxc5 {[%clk 0:01:51]}  Nd7 {[%clk 0:02:03]} 17. Rac1 {[%clk 0:01:38]}  Rc8 {[%clk 0:02:02]} 18. Ng5 {[%clk 0:01:29]}  Bc6 {[%clk 0:01:52]} 19. Be3 {[%clk 0:01:27]}  Ba4 {[%clk 0:01:39]} 20. Qd5 {[%clk 0:01:17]}  Qf6 {[%clk 0:01:20]} 21. Nf3 {[%clk 0:01:05]}  Rxe3 {[%clk 0:00:47]} 22. fxe3 {[%clk 0:01:02]}  Bc6 {[%clk 0:00:45]} 23. Qd2 {[%clk 0:00:56]}  Bh6 {[%clk 0:00:45]} 24. Rc3 {[%clk 0:00:38]}  Re8 {[%clk 0:00:44]} 25. Kh1 {[%clk 0:00:30]}  Bg7 {[%clk 0:00:32]} 26. Ra3 {[%clk 0:00:28]}  Nxc5 {[%clk 0:00:31]} 27. Nd4 {[%clk 0:00:21]}  Ne4 {[%clk 0:00:30]} 28. Qe1 {[%clk 0:00:21]}  Qxd6 {[%clk 0:00:27]} 29. Rxa7 {[%clk 0:00:17]}  Qc5 {[%clk 0:00:24]} 30. Ra5 {[%clk 0:00:18]}  Qb6 {[%clk 0:00:19]} 31. Nxc6 {[%clk 0:00:18]}  bxc6 {[%clk 0:00:19]} 32. Ra3 {[%clk 0:00:18]}  Bh6 {[%clk 0:00:16]} 33. Rb3 {[%clk 0:00:18]}  Qc5 {[%clk 0:00:16]} 34. Bf3 {[%clk 0:00:18]}  Nf6 {[%clk 0:00:13]} 35. Qb4 {[%clk 0:00:16]}  Qe5 {[%clk 0:00:08]} 36. Qd6 {[%clk 0:00:15]}  c5 {[%clk 0:00:03]} 37. Qxe5 {[%clk 0:00:14]}  Rxe5 {[%clk 0:00:04]} 38. Rdd3 {[%clk 0:00:11]}  f4 {[%clk 0:00:04]} 39. e4 {[%clk 0:00:09]}  g5 {[%clk 0:00:05]} 40. h3 {[%clk 0:00:09]}  Nxe4 {[%clk 0:00:03]} 41. Bxe4 {[%clk 0:00:07]}  Rxe4 {[%clk 0:00:04]} 42. a4 {[%clk 0:00:07]}  Rxc4 {[%clk 0:00:05]} 43. Ra3 {[%clk 0:00:08]}  Bg7 {[%clk 0:00:05]} 44. a5 {[%clk 0:00:07]}  Be5 {[%clk 0:00:05]} 45. Rd1 {[%clk 0:00:07]}  Bc7 {[%clk 0:00:01]} 46. a6 {[%clk 0:00:07]}  Bb6 {[%clk 0:00:01]} 47. a7 {[%clk 0:00:07]}  Bxa7 {[%clk 0:00:02]} 48. Rxa7 {[%clk 0:00:08]}  f3 {[%clk 0:00:02]} 49. gxf3 {[%clk 0:00:08]}  Rf4 {[%clk 0:00:03]} 50. Kg2 {[%clk 0:00:07]}  c4 {[%clk 0:00:03]} 51. Rd5 {[%clk 0:00:08]}  Kg7 {[%clk 0:00:03]} 52. Rxg5+ {[%clk 0:00:08]} 1-0

[Event "January 2 Early 2024"]
[Site "https://www.chess.com"]
[Date "2024.01.02"]
[Round "6"]
[White "Volkov, Maksim"]
[Black "Vasquez Schroeder, Rodrigo"]
[Result "0-1"]
[Board "29"]
[TimeControl "180+1"]
[WhiteFideId "54123070"]
[BlackFideId "3400042"]
[WhiteElo "2650"]
[BlackElo "2916"]
[WhiteTeam "RUS"]
[BlackTeam "CHI"]
[WhiteClock "0:00:00"]
[BlackClock "0:00:41"]

1. d4 {[%clk 0:03:00]}  Nf6 {[%clk 0:02:59]} 2. c4 {[%clk 0:03:00]}  e6 {[%clk 0:02:59]} 3. g3 {[%clk 0:03:00]}  c5 {[%clk 0:02:59]} 4. d5 {[%clk 0:03:01]}  exd5 {[%clk 0:02:59]} 5. cxd5 {[%clk 0:03:01]}  d6 {[%clk 0:03:00]} 6. Nc3 {[%clk 0:03:02]}  g6 {[%clk 0:03:00]} 7. Bg2 {[%clk 0:03:03]}  Bg7 {[%clk 0:03:01]} 8. Nf3 {[%clk 0:03:03]}  O-O {[%clk 0:03:02]} 9. O-O {[%clk 0:03:04]}  Re8 {[%clk 0:03:02]} 10. Bf4 {[%clk 0:03:04]}  h6 {[%clk 0:03:02]} 11. Re1 {[%clk 0:02:56]}  g5 {[%clk 0:03:00]} 12. Bd2 {[%clk 0:02:57]}  Bf5 {[%clk 0:03:01]} 13. h4 {[%clk 0:02:57]}  g4 {[%clk 0:03:01]} 14. Nh2 {[%clk 0:02:57]}  Bg6 {[%clk 0:02:54]} 15. Nf1 {[%clk 0:02:55]}  Nbd7 {[%clk 0:02:52]} 16. Qc1 {[%clk 0:02:50]}  Kh7 {[%clk 0:02:48]} 17. Bf4 {[%clk 0:02:47]}  Ne5 {[%clk 0:02:47]} 18. Ne3 {[%clk 0:02:47]}  Qd7 {[%clk 0:02:40]} 19. a4 {[%clk 0:02:46]}  b6 {[%clk 0:02:28]} 20. Kh2 {[%clk 0:02:37]}  Nh5 {[%clk 0:02:20]} 21. Bxe5 {[%clk 0:02:19]}  Bxe5 {[%clk 0:02:18]} 22. Nc4 {[%clk 0:02:17]}  Qe7 {[%clk 0:02:13]} 23. Nxe5 {[%clk 0:02:08]}  Qxe5 {[%clk 0:02:13]} 24. Ra3 {[%clk 0:01:55]}  f5 {[%clk 0:02:09]} 25. Nb5 {[%clk 0:01:49]}  Qe7 {[%clk 0:01:56]} 26. Re3 {[%clk 0:01:34]}  Qf6 {[%clk 0:01:51]} 27. Rxe8 {[%clk 0:00:49]}  Bxe8 {[%clk 0:01:45]} 28. Nc7 {[%clk 0:00:40]}  Rc8 {[%clk 0:01:44]} 29. Ne6 {[%clk 0:00:39]}  Bf7 {[%clk 0:01:40]} 30. Nf4 {[%clk 0:00:39]}  Nxf4 {[%clk 0:01:35]} 31. Qxf4 {[%clk 0:00:40]}  Qe5 {[%clk 0:01:36]} 32. Qxe5 {[%clk 0:00:20]}  dxe5 {[%clk 0:01:35]} 33. e4 {[%clk 0:00:21]}  Kg6 {[%clk 0:01:26]} 34. exf5+ {[%clk 0:00:19]}  Kxf5 {[%clk 0:01:26]} 35. Be4+ {[%clk 0:00:20]}  Kf6 {[%clk 0:01:27]} 36. Rd1 {[%clk 0:00:20]}  Rd8 {[%clk 0:01:25]} 37. d6 {[%clk 0:00:18]}  Be8 {[%clk 0:01:20]} 38. a5 {[%clk 0:00:16]}  Ke6 {[%clk 0:01:18]} 39. Bd5+ {[%clk 0:00:11]}  Kf5 {[%clk 0:00:58]} 40. Bb3 {[%clk 0:00:06]}  Bc6 {[%clk 0:00:55]} 41. axb6 {[%clk 0:00:06]}  axb6 {[%clk 0:00:54]} 42. Bc2+ {[%clk 0:00:07]}  Kf6 {[%clk 0:00:52]} 43. Bb3 {[%clk 0:00:06]}  e4 {[%clk 0:00:52]} 44. Kg1 {[%clk 0:00:05]}  Ke5 {[%clk 0:00:52]} 45. Ra1 {[%clk 0:00:04]}  Rxd6 {[%clk 0:00:51]} 46. Ra6 {[%clk 0:00:04]}  Bb5 {[%clk 0:00:48]} 47. Ra7 {[%clk 0:00:03]}  Be2 {[%clk 0:00:46]} 48. Re7+ {[%clk 0:00:04]}  Kd4 {[%clk 0:00:46]} 49. Bc2 {[%clk 0:00:03]}  Bf3 {[%clk 0:00:46]} 50. Kf1 {[%clk 0:00:02]}  b5 {[%clk 0:00:45]} 51. Ke1 {[%clk 0:00:00]}  Kc4 {[%clk 0:00:41]} 0-1

[Event "January 2 Early 2024"]
[Site "https://www.chess.com"]
[Date "2024.01.02"]
[Round "6"]
[White "Klymchuk, Andriy"]
[Black "Travadon, Loic"]
[Result "0-1"]
[Board "31"]
[TimeControl "180+1"]
[WhiteFideId "14140063"]
[BlackFideId "26092131"]
[WhiteElo "2897"]
[BlackElo "2285"]
[WhiteTeam "UKR"]
[BlackTeam "FRA"]
[WhiteClock "0:02:26"]
[BlackClock "0:01:56"]

1. e4 {[%clk 0:03:00]}  e5 {[%clk 0:02:59]} 2. Nf3 {[%clk 0:03:00]}  Nc6 {[%clk 0:03:00]} 3. Bb5 {[%clk 0:03:00]}  a6 {[%clk 0:02:59]} 4. Ba4 {[%clk 0:03:01]}  Nf6 {[%clk 0:02:59]} 5. Qe2 {[%clk 0:03:00]}  Qe7 {[%clk 0:02:57]} 6. c3 {[%clk 0:02:58]}  d6 {[%clk 0:02:34]} 7. O-O {[%clk 0:02:57]}  Bd7 {[%clk 0:02:30]} 8. Re1 {[%clk 0:02:52]}  g6 {[%clk 0:02:26]} 9. d4 {[%clk 0:02:50]}  Bg7 {[%clk 0:02:25]} 10. d5 {[%clk 0:02:39]}  Nd8 {[%clk 0:02:22]} 11. Bxd7+ {[%clk 0:02:39]}  Nxd7 {[%clk 0:02:18]} 12. c4 {[%clk 0:02:39]}  f5 {[%clk 0:02:11]} 13. Nc3 {[%clk 0:02:38]}  f4 {[%clk 0:02:07]} 14. h3 {[%clk 0:02:31]}  g5 {[%clk 0:02:03]} 15. b4 {[%clk 0:02:26]}  h5 {[%clk 0:01:56]} 16. Nh2 {[%clk 0:02:26]} 0-1

[Event "January 2 Early 2024"]
[Site "https://www.chess.com"]
[Date "2024.01.02"]
[Round "6"]
[White "Gajwa Ankit"]
[Black "Salem, A.R. Saleh"]
[Result "0-1"]
[Board "32"]
[TimeControl "180+1"]
[WhiteFideId "5077834"]
[BlackFideId "9301348"]
[WhiteElo "2373"]
[BlackElo "2986"]
[WhiteTeam "IND"]
[BlackTeam "UAE"]
[WhiteClock "0:00:13"]
[BlackClock "0:02:21"]

1. e4 {[%clk 0:03:00]}  e5 {[%clk 0:02:55]} 2. Nf3 {[%clk 0:02:59]}  Nc6 {[%clk 0:02:55]} 3. Bb5 {[%clk 0:02:58]}  a6 {[%clk 0:02:55]} 4. Ba4 {[%clk 0:02:58]}  Nf6 {[%clk 0:02:56]} 5. O-O {[%clk 0:02:57]}  Be7 {[%clk 0:02:57]} 6. Re1 {[%clk 0:02:57]}  b5 {[%clk 0:02:57]} 7. Bb3 {[%clk 0:02:58]}  O-O {[%clk 0:02:58]} 8. a4 {[%clk 0:02:56]}  Bb7 {[%clk 0:02:59]} 9. d3 {[%clk 0:02:56]}  d6 {[%clk 0:02:59]} 10. Nbd2 {[%clk 0:02:55]}  Nb8 {[%clk 0:02:58]} 11. Nf1 {[%clk 0:02:55]}  Nbd7 {[%clk 0:02:58]} 12. c3 {[%clk 0:02:54]}  h6 {[%clk 0:02:56]} 13. Ng3 {[%clk 0:02:52]}  Re8 {[%clk 0:02:54]} 14. axb5 {[%clk 0:02:35]}  axb5 {[%clk 0:02:54]} 15. Rxa8 {[%clk 0:02:36]}  Bxa8 {[%clk 0:02:55]} 16. Nf5 {[%clk 0:02:28]}  Bf8 {[%clk 0:02:55]} 17. N3h4 {[%clk 0:02:19]}  Nc5 {[%clk 0:02:54]} 18. Ba2 {[%clk 0:02:15]}  d5 {[%clk 0:02:55]} 19. b4 {[%clk 0:02:10]}  Ne6 {[%clk 0:02:55]} 20. exd5 {[%clk 0:01:49]}  Nxd5 {[%clk 0:02:56]} 21. Qg4 {[%clk 0:01:35]}  Kh8 {[%clk 0:02:40]} 22. Rxe5 {[%clk 0:01:21]}  Nxc3 {[%clk 0:02:39]} 23. Bxe6 {[%clk 0:01:20]}  Rxe6 {[%clk 0:02:29]} 24. Rxe6 {[%clk 0:01:16]}  fxe6 {[%clk 0:02:30]} 25. Ng6+ {[%clk 0:00:42]}  Kh7 {[%clk 0:02:30]} 26. Ne5 {[%clk 0:00:31]}  Qf6 {[%clk 0:02:20]} 27. Nd7 {[%clk 0:00:19]}  Qxf5 {[%clk 0:02:20]} 28. Qxf5+ {[%clk 0:00:19]}  exf5 {[%clk 0:02:21]} 29. Nxf8+ {[%clk 0:00:19]}  Kg8 {[%clk 0:02:22]} 30. Bb2 {[%clk 0:00:19]}  Na4 {[%clk 0:02:22]} 31. Ne6 {[%clk 0:00:16]}  Nxb2 {[%clk 0:02:22]} 32. Nxc7 {[%clk 0:00:16]}  Bc6 {[%clk 0:02:23]} 33. d4 {[%clk 0:00:17]}  Kf7 {[%clk 0:02:23]} 34. d5 {[%clk 0:00:17]}  Bd7 {[%clk 0:02:24]} 35. Na6 {[%clk 0:00:18]}  Ke7 {[%clk 0:02:19]} 36. Nc5 {[%clk 0:00:17]}  Kd6 {[%clk 0:02:19]} 37. f4 {[%clk 0:00:16]}  Bc8 {[%clk 0:02:20]} 38. Kf2 {[%clk 0:00:15]}  Kxd5 {[%clk 0:02:20]} 39. h3 {[%clk 0:00:13]}  Kc4 {[%clk 0:02:21]} 0-1

[Event "January 2 Early 2024"]
[Site "https://www.chess.com"]
[Date "2024.01.02"]
[Round "6"]
[White "Arabidze, Meri"]
[Black "Drygalov, Andrey"]
[Result "1/2-1/2"]
[Board "34"]
[TimeControl "180+1"]
[WhiteFideId "13604040"]
[BlackFideId "24171735"]
[WhiteElo "2731"]
[BlackElo "2942"]
[WhiteTeam "GEO"]
[BlackTeam "RUS"]
[WhiteClock "0:00:06"]
[BlackClock "0:00:03"]

1. Nf3 {[%clk 0:03:00]}  d5 {[%clk 0:03:00]} 2. c4 {[%clk 0:03:00]}  c6 {[%clk 0:02:57]} 3. g3 {[%clk 0:03:00]}  Nf6 {[%clk 0:02:57]} 4. Bg2 {[%clk 0:03:00]}  g6 {[%clk 0:02:58]} 5. b3 {[%clk 0:02:59]}  Bg7 {[%clk 0:02:58]} 6. Bb2 {[%clk 0:02:59]}  O-O {[%clk 0:02:59]} 7. O-O {[%clk 0:02:59]}  a5 {[%clk 0:02:58]} 8. d3 {[%clk 0:02:49]}  a4 {[%clk 0:02:58]} 9. b4 {[%clk 0:02:45]}  Re8 {[%clk 0:02:56]} 10. a3 {[%clk 0:02:44]}  Nbd7 {[%clk 0:02:47]} 11. Nc3 {[%clk 0:02:42]}  dxc4 {[%clk 0:02:42]} 12. dxc4 {[%clk 0:02:42]}  Nb6 {[%clk 0:02:42]} 13. Nd2 {[%clk 0:02:25]}  Be6 {[%clk 0:02:42]} 14. c5 {[%clk 0:02:21]}  Nc4 {[%clk 0:02:42]} 15. Nxc4 {[%clk 0:02:21]}  Bxc4 {[%clk 0:02:43]} 16. Qxd8 {[%clk 0:02:05]}  Rexd8 {[%clk 0:02:44]} 17. Rfd1 {[%clk 0:02:05]}  Nd7 {[%clk 0:02:18]} 18. Rd2 {[%clk 0:01:48]}  Ne5 {[%clk 0:02:14]} 19. Rxd8+ {[%clk 0:01:19]}  Rxd8 {[%clk 0:02:15]} 20. Nxa4 {[%clk 0:01:19]}  Bxe2 {[%clk 0:02:15]} 21. f4 {[%clk 0:01:05]}  Nf3+ {[%clk 0:02:03]} 22. Kf2 {[%clk 0:00:55]}  Bxb2 {[%clk 0:01:53]} 23. Nxb2 {[%clk 0:00:56]}  Rd2 {[%clk 0:01:54]} 24. Bxf3 {[%clk 0:00:55]}  Bxf3+ {[%clk 0:01:54]} 25. Kxf3 {[%clk 0:00:55]}  Rxb2 {[%clk 0:01:55]} 26. Rd1 {[%clk 0:00:41]}  Rb3+ {[%clk 0:01:53]} 27. Kg2 {[%clk 0:00:40]}  Rxa3 {[%clk 0:01:35]} 28. Rd7 {[%clk 0:00:41]}  Ra2+ {[%clk 0:01:36]} 29. Kh3 {[%clk 0:00:36]}  e6 {[%clk 0:01:33]} 30. Rxb7 {[%clk 0:00:36]}  Rb2 {[%clk 0:01:34]} 31. Rb6 {[%clk 0:00:27]}  Kg7 {[%clk 0:01:34]} 32. Rxc6 {[%clk 0:00:25]}  Rxb4 {[%clk 0:01:34]} 33. Kg4 {[%clk 0:00:25]}  Rb3 {[%clk 0:01:33]} 34. h4 {[%clk 0:00:16]}  h5+ {[%clk 0:01:33]} 35. Kh3 {[%clk 0:00:17]}  Rc3 {[%clk 0:01:34]} 36. Rc7 {[%clk 0:00:17]}  Rc2 {[%clk 0:01:34]} 37. c6 {[%clk 0:00:17]}  Kf6 {[%clk 0:01:35]} 38. Rc8 {[%clk 0:00:13]}  Kf5 {[%clk 0:01:35]} 39. Rc7 {[%clk 0:00:10]}  f6 {[%clk 0:01:12]} 40. Rc8 {[%clk 0:00:10]}  e5 {[%clk 0:01:10]} 41. fxe5 {[%clk 0:00:08]}  fxe5 {[%clk 0:01:10]} 42. c7 {[%clk 0:00:05]}  Ke4 {[%clk 0:01:11]} 43. Rg8 {[%clk 0:00:03]}  Rxc7 {[%clk 0:01:10]} 44. Rxg6 {[%clk 0:00:04]}  Rh7 {[%clk 0:00:51]} 45. g4 {[%clk 0:00:03]}  Kd3 {[%clk 0:00:28]} 46. gxh5 {[%clk 0:00:03]}  e4 {[%clk 0:00:29]} 47. Kg4 {[%clk 0:00:03]}  e3 {[%clk 0:00:29]} 48. Re6 {[%clk 0:00:03]}  e2 {[%clk 0:00:21]} 49. Kg5 {[%clk 0:00:03]}  Rg7+ {[%clk 0:00:22]} 50. Kf6 {[%clk 0:00:04]}  Rg4 {[%clk 0:00:22]} 51. Rxe2 {[%clk 0:00:04]}  Kxe2 {[%clk 0:00:19]} 52. h6 {[%clk 0:00:04]}  Rxh4 {[%clk 0:00:19]} 53. Kg7 {[%clk 0:00:05]}  Rf4 {[%clk 0:00:20]} 54. h7 {[%clk 0:00:05]}  Rg4+ {[%clk 0:00:19]} 55. Kf7 {[%clk 0:00:05]}  Rf4+ {[%clk 0:00:09]} 56. Kg7 {[%clk 0:00:05]}  Rg4+ {[%clk 0:00:09]} 57. Kf7 {[%clk 0:00:05]}  Rh4 {[%clk 0:00:09]} 58. Kg7 {[%clk 0:00:06]}  Rg4+ {[%clk 0:00:03]} 1/2-1/2

[Event "January 2 Early 2024"]
[Site "https://www.chess.com"]
[Date "2024.01.02"]
[Round "6"]
[White "Piesik, Piotr"]
[Black "Zhigalko, Sergei"]
[Result "0-1"]
[Board "38"]
[TimeControl "180+1"]
[WhiteFideId "1136194"]
[BlackFideId "13502956"]
[WhiteElo "2664"]
[BlackElo "2901"]
[WhiteTeam "CZE"]
[BlackTeam "BLR"]
[WhiteClock "0:01:37"]
[BlackClock "0:01:33"]

1. Nf3 {[%clk 0:03:00]}  d5 {[%clk 0:03:00]} 2. g3 {[%clk 0:03:00]}  c6 {[%clk 0:03:00]} 3. Bg2 {[%clk 0:03:00]}  Bg4 {[%clk 0:03:00]} 4. O-O {[%clk 0:03:01]}  Nd7 {[%clk 0:03:00]} 5. c4 {[%clk 0:03:01]}  e6 {[%clk 0:03:00]} 6. cxd5 {[%clk 0:03:01]}  exd5 {[%clk 0:02:53]} 7. d3 {[%clk 0:03:01]}  Ngf6 {[%clk 0:02:52]} 8. Qb3 {[%clk 0:02:59]}  Nc5 {[%clk 0:02:45]} 9. Qc2 {[%clk 0:03:00]}  Be7 {[%clk 0:02:45]} 10. b4 {[%clk 0:02:59]}  Ne6 {[%clk 0:02:45]} 11. a3 {[%clk 0:02:57]}  Bxf3 {[%clk 0:02:45]} 12. exf3 {[%clk 0:02:57]}  a5 {[%clk 0:02:45]} 13. bxa5 {[%clk 0:02:54]}  Qxa5 {[%clk 0:02:44]} 14. Bb2 {[%clk 0:02:54]}  O-O {[%clk 0:02:41]} 15. f4 {[%clk 0:02:54]}  Qa4 {[%clk 0:02:29]} 16. Qd2 {[%clk 0:02:52]}  Nc5 {[%clk 0:02:27]} 17. Nc3 {[%clk 0:02:48]}  Qa6 {[%clk 0:02:23]} 18. Qe2 {[%clk 0:02:40]}  Rfe8 {[%clk 0:02:18]} 19. Rad1 {[%clk 0:02:36]}  Nb3 {[%clk 0:02:03]} 20. Qc2 {[%clk 0:02:28]}  Nd4 {[%clk 0:02:02]} 21. Qb1 {[%clk 0:02:27]}  Bxa3 {[%clk 0:02:01]} 22. Ba1 {[%clk 0:02:11]}  Bc5 {[%clk 0:01:55]} 23. Kh1 {[%clk 0:02:10]}  h5 {[%clk 0:01:50]} 24. h3 {[%clk 0:02:10]}  Re7 {[%clk 0:01:45]} 25. Rfe1 {[%clk 0:02:06]}  Rae8 {[%clk 0:01:43]} 26. Rxe7 {[%clk 0:02:06]}  Rxe7 {[%clk 0:01:44]} 27. Qa2 {[%clk 0:01:49]}  Qxa2 {[%clk 0:01:36]} 28. Nxa2 {[%clk 0:01:50]}  Re2 {[%clk 0:01:37]} 29. Nc3 {[%clk 0:01:43]}  Rxf2 {[%clk 0:01:34]} 30. Na4 {[%clk 0:01:37]}  Ba7 {[%clk 0:01:33]} 0-1